[Event "*** Titled Tuesday 3|2 Blitz"]
[Site "Chess.com"]
[Date "2015.12.01"]
[Round "8"]
[White "cheese111"]
[Black "Gabrielian_Artur"]
[Result "0-1"]
[WhiteElo "2207"]
[BlackElo "2446"]
[TimeControl "180+2"]
[EndTime "18:42:36 PST"]
[Termination "Gabrielian_Artur won by resignation"]

1. e4 {[%clk 0:03:01.9]} 1... c5 {[%clk 0:03:00.4]} 2. Nf3 {[%clk 0:03:02.8]}
2... d6 {[%clk 0:03:01.5]} 3. Bb5+ {[%clk 0:03:01.2]} 3... Nd7 {[%clk
0:03:01.9]} 4. d4 {[%clk 0:03:00.8]} 4... cxd4 {[%clk 0:03:02.6]} 5. Qxd4 {[%clk
0:03:01.4]} 5... a6 {[%clk 0:03:04]} 6. Bxd7+ {[%clk 0:03:02.3]} 6... Bxd7
{[%clk 0:03:05.4]} 7. c4 {[%clk 0:03:03.8]} 7... b5 {[%clk 0:03:02.8]} 8. cxb5
{[%clk 0:02:54.2]} 8... axb5 {[%clk 0:02:57]} 9. Nc3 {[%clk 0:02:53.1]} 9... e5
{[%clk 0:02:57.3]} 10. Qd3 {[%clk 0:02:53.2]} 10... Nf6 {[%clk 0:02:51.2]} 11.
Bg5 {[%clk 0:02:51.4]} 11... Be7 {[%clk 0:02:29.3]} 12. Bxf6 {[%clk 0:02:50.2]}
12... gxf6 {[%clk 0:02:30.7]} 13. O-O {[%clk 0:02:46.3]} 13... Rg8 {[%clk
0:02:27.1]} 14. Nd5 {[%clk 0:02:47]} 14... f5 {[%clk 0:02:13.8]} 15. exf5 {[%clk
0:02:40.2]} 15... Ra4 {[%clk 0:02:14.4]} 16. Nc3 {[%clk 0:02:17.4]} 16... Rag4
{[%clk 0:02:13.8]} 17. Ne1 {[%clk 0:02:02.2]} 17... Qa8 {[%clk 0:01:54]} 18. f3
{[%clk 0:01:59.3]} 18... Rd4 {[%clk 0:01:52.7]} 19. Qe2 {[%clk 0:01:57.3]} 19...
b4 {[%clk 0:01:51.7]} 20. Nb5 {[%clk 0:01:53.3]} 20... Bxb5 {[%clk 0:01:43]} 21.
Qxb5+ {[%clk 0:01:55.2]} 21... Kf8 {[%clk 0:01:44.3]} 22. Qe2 {[%clk 0:01:38.8]}
22... Qd5 {[%clk 0:01:42.1]} 23. a4 {[%clk 0:01:18.4]} 23... bxa3 {[%clk
0:01:29.9]} 24. Rxa3 {[%clk 0:01:09.8]} 24... Rd2 {[%clk 0:01:29.1]} 25. Qe4
{[%clk 0:01:05.3]} 25... Qc5+ {[%clk 0:01:17.9]} 26. Kh1 {[%clk 0:01:05.7]}
26... Rg5 {[%clk 0:00:58.9]} 27. Rc3 {[%clk 0:00:29.4]} 27... Qb5 {[%clk
0:00:55.5]} 28. Nd3 {[%clk 0:00:19.6]} 28... Rgxg2 {[%clk 0:00:54.4]} 29. Rc8+
{[%clk 0:00:17.5]} 29... Kg7 {[%clk 0:00:55.2]} 30. f6+ {[%clk 0:00:14.4]} 30...
Bxf6 {[%clk 0:00:54.9]} 31. Rg1 {[%clk 0:00:12.3]} 31... Rxg1+ {[%clk 0:00:55]}
32. Kxg1 {[%clk 0:00:13.4]} 32... Qxd3 {[%clk 0:00:54.4]} 0-1

[Event "*** Titled Tuesday 3|2 Blitz"]
[Site "Chess.com"]
[Date "2015.12.01"]
[Round "8"]
[White "norwaytoadog"]
[Black "kungmongmanh"]
[Result "1-0"]
[WhiteElo "1908"]
[BlackElo "2342"]
[TimeControl "180+2"]
[EndTime "18:42:46 PST"]
[Termination "norwaytoadog won by resignation"]

1. e4 {[%clk 0:02:54.4]} 1... c5 {[%clk 0:03:00.8]} 2. Nc3 {[%clk 0:02:54.5]}
2... e6 {[%clk 0:03:02]} 3. f4 {[%clk 0:02:55.3]} 3... a6 {[%clk 0:03:03.2]} 4.
Nf3 {[%clk 0:02:55.4]} 4... b5 {[%clk 0:03:04.4]} 5. a4 {[%clk 0:02:49.9]} 5...
b4 {[%clk 0:03:04.8]} 6. Ne2 {[%clk 0:02:49.9]} 6... Bb7 {[%clk 0:03:06]} 7. Ng3
{[%clk 0:02:50.3]} 7... d5 {[%clk 0:03:02.7]} 8. Qe2 {[%clk 0:02:47]} 8... Nd7
{[%clk 0:02:57.1]} 9. d3 {[%clk 0:02:44.9]} 9... Qc7 {[%clk 0:02:50.2]} 10. Bd2
{[%clk 0:02:40.1]} 10... Ne7 {[%clk 0:02:45.3]} 11. Qf2 {[%clk 0:02:36.5]} 11...
Rc8 {[%clk 0:02:40.1]} 12. Be2 {[%clk 0:02:34.2]} 12... g6 {[%clk 0:02:36.2]}
13. f5 {[%clk 0:02:22.4]} 13... dxe4 {[%clk 0:02:22.7]} 14. fxe6 {[%clk
0:02:19]} 14... fxe6 {[%clk 0:02:21.9]} 15. Ng5 {[%clk 0:02:18.6]} 15... Ne5
{[%clk 0:01:54.4]} 16. Qf6 {[%clk 0:02:03.1]} 16... Rg8 {[%clk 0:01:40.1]} 17.
Nxe6 {[%clk 0:02:03.5]} 17... Qb8 {[%clk 0:01:27.9]} 18. O-O {[%clk 0:01:58.7]}
18... Nd5 {[%clk 0:01:04.7]} 19. Qh4 {[%clk 0:01:32.5]} 19... Be7 {[%clk
0:00:21.6]} 20. Qxh7 {[%clk 0:01:30.3]} 20... Kd7 {[%clk 0:00:22.6]} 21. dxe4
{[%clk 0:01:24.7]} 21... Kxe6 {[%clk 0:00:21.2]} 22. exd5+ {[%clk 0:01:24.8]}
22... Bxd5 {[%clk 0:00:23.1]} 23. Rae1 {[%clk 0:01:13.7]} 23... Rh8 {[%clk
0:00:21.5]} 24. Qg7 {[%clk 0:01:08.4]} 24... Rcg8 {[%clk 0:00:21.7]} 25. Bg4+
{[%clk 0:01:07.5]} 25... Kd6 {[%clk 0:00:21.7]} 26. Qxe5+ {[%clk 0:01:07.8]}
26... Kc6 {[%clk 0:00:22.7]} 27. Qxe7 {[%clk 0:01:04.4]} 27... Kb6 {[%clk
0:00:14.3]} 28. a5+ {[%clk 0:01:02]} 28... Kxa5 {[%clk 0:00:14.1]} 29. Ra1+
{[%clk 0:01:02.5]} 29... Kb6 {[%clk 0:00:15.5]} 30. Rf6+ {[%clk 0:01:01.6]}
30... Bc6 {[%clk 0:00:16.9]} 31. Bf3 {[%clk 0:00:53.5]} 31... Rc8 {[%clk
0:00:17.2]} 32. Qd7 {[%clk 0:00:51.1]} 32... Qb7 {[%clk 0:00:14.4]} 33. Bxc6
{[%clk 0:00:50.8]} 33... Rxc6 {[%clk 0:00:15.4]} 34. Rxc6+ {[%clk 0:00:51.3]}
34... Qxc6 {[%clk 0:00:16.3]} 35. Rxa6+ {[%clk 0:00:51.7]} 1-0

[Event "*** Titled Tuesday 3|2 Blitz"]
[Site "Chess.com"]
[Date "2015.12.01"]
[Round "8"]
[White "MITerryble"]
[Black "adypady02"]
[Result "1-0"]
[WhiteElo "2607"]
[BlackElo "2500"]
[TimeControl "180+2"]
[EndTime "18:43:09 PST"]
[Termination "MITerryble won by resignation"]

1. d4 {[%clk 0:03:01.9]} 1... Nf6 {[%clk 0:03:00.6]} 2. Nf3 {[%clk 0:03:02.8]}
2... g6 {[%clk 0:02:59.4]} 3. Bg5 {[%clk 0:03:03.4]} 3... Bg7 {[%clk 0:03:00.7]}
4. Nbd2 {[%clk 0:03:04.6]} 4... d5 {[%clk 0:03:02.1]} 5. c3 {[%clk 0:03:05.9]}
5... O-O {[%clk 0:03:03.2]} 6. e3 {[%clk 0:03:07.2]} 6... Nbd7 {[%clk
0:03:03.5]} 7. Be2 {[%clk 0:03:08.1]} 7... c5 {[%clk 0:03:04.6]} 8. O-O {[%clk
0:03:09]} 8... b6 {[%clk 0:03:03.3]} 9. a4 {[%clk 0:03:08.6]} 9... Bb7 {[%clk
0:03:00.4]} 10. a5 {[%clk 0:03:07.7]} 10... Qc7 {[%clk 0:02:55.6]} 11. Bf4
{[%clk 0:03:04.5]} 11... Qc6 {[%clk 0:02:54.6]} 12. a6 {[%clk 0:03:04.9]} 12...
Bc8 {[%clk 0:02:55.6]} 13. Qb3 {[%clk 0:03:01]} 13... c4 {[%clk 0:02:55.7]} 14.
Qa3 {[%clk 0:03:01.8]} 14... Re8 {[%clk 0:02:56.1]} 15. b3 {[%clk 0:02:59.2]}
15... b5 {[%clk 0:02:32.3]} 16. bxc4 {[%clk 0:02:51.2]} 16... bxc4 {[%clk
0:02:34.2]} 17. h3 {[%clk 0:02:52.2]} 17... Ne4 {[%clk 0:02:23.4]} 18. Nxe4
{[%clk 0:02:51.8]} 18... dxe4 {[%clk 0:02:24.9]} 19. Nd2 {[%clk 0:02:50.5]}
19... Nb6 {[%clk 0:02:24.3]} 20. Rfb1 {[%clk 0:02:33.7]} 20... Be6 {[%clk
0:02:15.6]} 21. Qa5 {[%clk 0:02:27.8]} 21... Bd5 {[%clk 0:02:12.1]} 22. Rb5
{[%clk 0:02:24.7]} 22... e6 {[%clk 0:02:13]} 23. Rab1 {[%clk 0:02:19.9]} 23...
Bf8 {[%clk 0:02:13.8]} 24. Be5 {[%clk 0:02:16.7]} 24... Be7 {[%clk 0:02:09.2]}
25. Bd1 {[%clk 0:02:15.2]} 25... f6 {[%clk 0:02:06.7]} 26. Bg3 {[%clk
0:02:15.9]} 26... Kf7 {[%clk 0:01:56.2]} 27. Bc2 {[%clk 0:02:16.9]} 27... g5
{[%clk 0:01:53.8]} 28. Bd1 {[%clk 0:02:07.5]} 28... Kg6 {[%clk 0:01:54.3]} 29.
Qa2 {[%clk 0:02:01]} 29... h5 {[%clk 0:01:53.6]} 30. Qc2 {[%clk 0:01:58.8]}
30... f5 {[%clk 0:01:49.7]} 31. Be5 {[%clk 0:01:59.2]} 31... Rg8 {[%clk
0:01:46.6]} 32. Bh2 {[%clk 0:01:43.1]} 32... Raf8 {[%clk 0:01:39.4]} 33. f3
{[%clk 0:01:41]} 33... g4 {[%clk 0:01:05.2]} 34. fxe4 {[%clk 0:01:38.2]} 34...
fxe4 {[%clk 0:01:06.6]} 35. hxg4 {[%clk 0:01:38.8]} 35... Bh4 {[%clk 0:00:55.4]}
36. Nf3 {[%clk 0:01:34.6]} 36... Rxf3 {[%clk 0:00:50.7]} 37. Bxf3 {[%clk
0:01:34.2]} 37... Kf7 {[%clk 0:00:44.9]} 38. Rc5 {[%clk 0:01:32.1]} 38... Qa4
{[%clk 0:00:40.3]} 39. Rc7+ {[%clk 0:01:27.5]} 39... Kf6 {[%clk 0:00:41.1]} 40.
Be5+ {[%clk 0:01:24.3]} 40... Kg5 {[%clk 0:00:42.4]} 41. Bxe4 {[%clk 0:01:17.9]}
41... Qxc2 {[%clk 0:00:35.9]} 42. Bxc2 {[%clk 0:01:18.4]} 42... Kxg4 {[%clk
0:00:26.1]} 43. Rf1 {[%clk 0:01:18.2]} 43... Bg5 {[%clk 0:00:25.1]} 44. Bd1+
{[%clk 0:01:13.7]} 44... Kh4 {[%clk 0:00:26.3]} 45. Kh2 {[%clk 0:01:15]} 45...
Bxe3 {[%clk 0:00:08.9]} 46. Bf6+ {[%clk 0:01:15.5]} 1-0

[Event "*** Titled Tuesday 3|2 Blitz"]
[Site "Chess.com"]
[Date "2015.12.01"]
[Round "8"]
[White "JustaTrickstar"]
[Black "jefferyx"]
[Result "0-1"]
[WhiteElo "2474"]
[BlackElo "2569"]
[TimeControl "180+2"]
[EndTime "18:44:05 PST"]
[Termination "jefferyx won by checkmate"]

1. d4 {[%clk 0:02:43.4]} 1... b5 {[%clk 0:02:59.7]} 2. Nf3 {[%clk 0:02:42.9]}
2... Bb7 {[%clk 0:03:00.7]} 3. g3 {[%clk 0:02:44.2]} 3... Bxf3 {[%clk
0:03:01.3]} 4. exf3 {[%clk 0:02:44.9]} 4... a6 {[%clk 0:03:03]} 5. Bg2 {[%clk
0:02:45.7]} 5... d5 {[%clk 0:03:04.4]} 6. O-O {[%clk 0:02:46.7]} 6... e6 {[%clk
0:03:06]} 7. f4 {[%clk 0:02:47.7]} 7... g6 {[%clk 0:03:07.2]} 8. a4 {[%clk
0:02:46.3]} 8... b4 {[%clk 0:03:07.7]} 9. c4 {[%clk 0:02:47.1]} 9... bxc3 {[%clk
0:03:08.4]} 10. bxc3 {[%clk 0:02:42.7]} 10... Bg7 {[%clk 0:03:09.4]} 11. Nd2
{[%clk 0:02:42.5]} 11... Ne7 {[%clk 0:03:10.2]} 12. Ba3 {[%clk 0:02:42.4]} 12...
O-O {[%clk 0:03:09]} 13. Nf3 {[%clk 0:02:43.4]} 13... Nd7 {[%clk 0:03:03.5]} 14.
Ne5 {[%clk 0:02:44.3]} 14... Re8 {[%clk 0:03:04]} 15. Qd3 {[%clk 0:02:41.2]}
15... c5 {[%clk 0:02:54.4]} 16. Rfb1 {[%clk 0:02:33.8]} 16... Nf5 {[%clk
0:02:32.1]} 17. Rb7 {[%clk 0:02:09.8]} 17... Nxe5 {[%clk 0:02:29.3]} 18. fxe5
{[%clk 0:02:09.8]} 18... Bf8 {[%clk 0:02:25.1]} 19. g4 {[%clk 0:01:36.4]} 19...
Nh4 {[%clk 0:02:15.5]} 20. Bf1 {[%clk 0:01:35.3]} 20... Qc8 {[%clk 0:02:13.2]}
21. Rab1 {[%clk 0:01:34.7]} 21... Qc6 {[%clk 0:01:48.1]} 22. Bc1 {[%clk
0:01:22.7]} 22... cxd4 {[%clk 0:01:20]} 23. cxd4 {[%clk 0:01:15.2]} 23... Qxa4
{[%clk 0:00:47.7]} 24. Qg3 {[%clk 0:00:44.2]} 24... Qxd4 {[%clk 0:00:33.5]} 25.
Qxh4 {[%clk 0:00:36.7]} 25... Qxe5 {[%clk 0:00:34.6]} 26. Bb2 {[%clk 0:00:37.8]}
26... Qf4 {[%clk 0:00:26.5]} 27. Bf6 {[%clk 0:00:20.1]} 27... e5 {[%clk
0:00:10.9]} 28. Bg2 {[%clk 0:00:17.5]} 28... e4 {[%clk 0:00:12]} 29. Rd7 {[%clk
0:00:15.5]} 29... e3 {[%clk 0:00:11.2]} 30. fxe3 {[%clk 0:00:15.6]} 30... Qxe3+
{[%clk 0:00:12.2]} 31. Kh1 {[%clk 0:00:16.9]} 31... Rab8 {[%clk 0:00:08.7]} 32.
Rf1 {[%clk 0:00:14.7]} 32... Rb6 {[%clk 0:00:04.5]} 33. Bxd5 {[%clk 0:00:13.9]}
33... Rbe6 {[%clk 0:00:03.1]} 34. Bxe6 {[%clk 0:00:14.4]} 34... Qe4+ {[%clk
0:00:04.1]} 35. Kg1 {[%clk 0:00:11.7]} 35... Bc5+ {[%clk 0:00:05.8]} 36. Rf2
{[%clk 0:00:09]} 36... Qxe6 {[%clk 0:00:07]} 37. Rd4 {[%clk 0:00:05.6]} 37...
Qc6 {[%clk 0:00:05.8]} 38. g5 {[%clk 0:00:03.4]} 38... Re1+ {[%clk 0:00:04.9]}
39. Rf1 {[%clk 0:00:04.9]} 39... Re4 {[%clk 0:00:04.5]} 40. Qh6 {[%clk
0:00:03.9]} 40... Rg4+ {[%clk 0:00:05.7]} 41. Kf2 {[%clk 0:00:04.1]} 41... Rg2+
{[%clk 0:00:05]} 42. Ke3 {[%clk 0:00:04.7]} 42... Qe6+ {[%clk 0:00:05.3]} 43.
Kd3 {[%clk 0:00:04.9]} 43... Qe2+ {[%clk 0:00:06.1]} 44. Kc3 {[%clk 0:00:05.5]}
44... Qc2# {[%clk 0:00:08]} 0-1

[Event "*** Titled Tuesday 3|2 Blitz"]
[Site "Chess.com"]
[Date "2015.12.01"]
[Round "8"]
[White "BellJackson95"]
[Black "Iball95"]
[Result "0-1"]
[WhiteElo "2198"]
[BlackElo "2441"]
[TimeControl "180+2"]
[EndTime "18:44:08 PST"]
[Termination "Iball95 won by resignation"]

1. e4 {[%clk 0:03:01.9]} 1... e5 {[%clk 0:02:58.5]} 2. Nf3 {[%clk 0:03:01.9]}
2... Nc6 {[%clk 0:02:58.7]} 3. Bc4 {[%clk 0:03:03.1]} 3... Bc5 {[%clk
0:02:58.1]} 4. c3 {[%clk 0:02:56.7]} 4... Nf6 {[%clk 0:02:58.2]} 5. d4 {[%clk
0:02:55.6]} 5... exd4 {[%clk 0:02:56.8]} 6. cxd4 {[%clk 0:02:57.5]} 6... Bb4+
{[%clk 0:02:57.4]} 7. Bd2 {[%clk 0:02:58.5]} 7... Bxd2+ {[%clk 0:02:50.5]} 8.
Nbxd2 {[%clk 0:03:00.4]} 8... d5 {[%clk 0:02:49.4]} 9. exd5 {[%clk 0:03:02.3]}
9... Nxd5 {[%clk 0:02:51.3]} 10. O-O {[%clk 0:03:02.9]} 10... O-O {[%clk
0:02:50.8]} 11. Rc1 {[%clk 0:03:03.4]} 11... Bg4 {[%clk 0:02:42.5]} 12. h3
{[%clk 0:03:01.2]} 12... Bh5 {[%clk 0:02:43]} 13. Qb3 {[%clk 0:02:22.6]} 13...
Na5 {[%clk 0:02:16.3]} 14. Qa3 {[%clk 0:02:11.6]} 14... Nxc4 {[%clk 0:02:13.3]}
15. Rxc4 {[%clk 0:02:13.5]} 15... c6 {[%clk 0:02:11.9]} 16. Ne5 {[%clk
0:01:58.9]} 16... Be2 {[%clk 0:02:09.8]} 17. Re1 {[%clk 0:01:57.4]} 17... Bxc4
{[%clk 0:02:09.9]} 18. Ndxc4 {[%clk 0:01:59.3]} 18... f6 {[%clk 0:02:03]} 19.
Nf3 {[%clk 0:01:54.8]} 19... Re8 {[%clk 0:02:01.9]} 20. Rd1 {[%clk 0:01:47.8]}
20... Qd7 {[%clk 0:02:01.3]} 21. Qd3 {[%clk 0:01:29.2]} 21... Re7 {[%clk
0:01:51]} 22. Qb3 {[%clk 0:01:28.3]} 22... Rae8 {[%clk 0:01:48.8]} 23. Ne3
{[%clk 0:01:28]} 23... Kh8 {[%clk 0:01:43.9]} 24. Ng4 {[%clk 0:01:23.2]} 24...
Qf5 {[%clk 0:01:31.3]} 25. Qa3 {[%clk 0:01:14]} 25... a6 {[%clk 0:01:26.3]} 26.
Qc5 {[%clk 0:00:59]} 26... Qd7 {[%clk 0:01:13.5]} 27. a4 {[%clk 0:00:54.4]}
27... Re2 {[%clk 0:01:10.2]} 28. b4 {[%clk 0:00:50]} 28... Qe7 {[%clk
0:01:10.8]} 29. Qc4 {[%clk 0:00:27.6]} 29... Qxb4 {[%clk 0:01:05.8]} 30. Qc1
{[%clk 0:00:27.7]} 30... Qxa4 {[%clk 0:00:44]} 31. Rf1 {[%clk 0:00:16.2]} 31...
Qc2 {[%clk 0:00:41.7]} 32. Qa1 {[%clk 0:00:13.3]} 32... Qe4 {[%clk 0:00:32.7]}
33. Qd1 {[%clk 0:00:08.9]} 33... a5 {[%clk 0:00:32.3]} 34. Qb3 {[%clk
0:00:08.5]} 34... b5 {[%clk 0:00:28.4]} 35. Qa3 {[%clk 0:00:09.1]} 35... a4
{[%clk 0:00:27.6]} 36. Qc1 {[%clk 0:00:10.1]} 36... Qc2 {[%clk 0:00:26.3]} 37.
Qa3 {[%clk 0:00:09]} 37... b4 {[%clk 0:00:25.2]} 38. Qa1 {[%clk 0:00:09.2]}
38... a3 {[%clk 0:00:25.3]} 39. Rc1 {[%clk 0:00:09.3]} 39... Qb2 {[%clk
0:00:24.9]} 40. Qxb2 {[%clk 0:00:07.1]} 40... axb2 {[%clk 0:00:25.2]} 0-1

[Event "*** Titled Tuesday 3|2 Blitz"]
[Site "Chess.com"]
[Date "2015.12.01"]
[Round "8"]
[White "ItalianMachine"]
[Black "flubs"]
[Result "1-0"]
[WhiteElo "2237"]
[BlackElo "2166"]
[TimeControl "180+2"]
[EndTime "18:44:13 PST"]
[Termination "ItalianMachine won by resignation"]

1. e4 {[%clk 0:03:01.9]} 1... c6 {[%clk 0:02:58.6]} 2. c4 {[%clk 0:02:59.4]}
2... d5 {[%clk 0:02:59.5]} 3. Nc3 {[%clk 0:02:58.7]} 3... dxe4 {[%clk
0:02:55.2]} 4. Nxe4 {[%clk 0:02:59.5]} 4... Bf5 {[%clk 0:02:56.5]} 5. Ng3 {[%clk
0:03:00.6]} 5... Bg6 {[%clk 0:02:57.7]} 6. d4 {[%clk 0:03:00.5]} 6... Nf6 {[%clk
0:02:55.4]} 7. Nf3 {[%clk 0:03:01.8]} 7... e6 {[%clk 0:02:55.1]} 8. Bd3 {[%clk
0:02:50.3]} 8... Bb4+ {[%clk 0:02:51.8]} 9. Bd2 {[%clk 0:02:48.9]} 9... Bxd3
{[%clk 0:02:47.5]} 10. Bxb4 {[%clk 0:02:50]} 10... Bxc4 {[%clk 0:02:48.5]} 11.
Rc1 {[%clk 0:02:37.6]} 11... Bd5 {[%clk 0:02:49.3]} 12. O-O {[%clk 0:02:38.3]}
12... Nbd7 {[%clk 0:02:48.8]} 13. Ne5 {[%clk 0:02:33.5]} 13... Rc8 {[%clk
0:02:36.9]} 14. Bd6 {[%clk 0:02:06.5]} 14... Ne4 {[%clk 0:02:06.5]} 15. Ba3
{[%clk 0:01:22.4]} 15... b6 {[%clk 0:01:40.2]} 16. Nxe4 {[%clk 0:01:19.5]} 16...
Bxe4 {[%clk 0:01:40.7]} 17. Nc4 {[%clk 0:01:21.1]} 17... Nf6 {[%clk 0:01:03.2]}
18. Nd6+ {[%clk 0:01:20.8]} 18... Kd7 {[%clk 0:01:04.7]} 19. Nxf7 {[%clk
0:01:13.1]} 19... Qe8 {[%clk 0:01:05.5]} 20. Nxh8 {[%clk 0:00:46.5]} 20... Qxh8
{[%clk 0:01:04.4]} 21. Qa4 {[%clk 0:00:41.5]} 21... a5 {[%clk 0:01:02.8]} 22. b4
{[%clk 0:00:21.8]} 22... Bd3 {[%clk 0:00:51.6]} 23. Rfe1 {[%clk 0:00:16.6]}
23... Bb5 {[%clk 0:00:52.6]} 24. Qb3 {[%clk 0:00:17.9]} 24... Nd5 {[%clk
0:00:50.8]} 25. bxa5 {[%clk 0:00:19.1]} 25... bxa5 {[%clk 0:00:52.6]} 26. Bc5
{[%clk 0:00:18.1]} 26... Qe8 {[%clk 0:00:48.1]} 27. Qg3 {[%clk 0:00:19.7]} 27...
Rc7 {[%clk 0:00:34]} 28. Qd6+ {[%clk 0:00:18.1]} 28... Kc8 {[%clk 0:00:35.4]}
29. Rxe6 {[%clk 0:00:19.7]} 29... Qh5 {[%clk 0:00:30.9]} 30. Rce1 {[%clk
0:00:20.6]} 30... Qg4 {[%clk 0:00:26.1]} 31. Re8+ {[%clk 0:00:20.2]} 31... Kb7
{[%clk 0:00:27]} 32. Qd8 {[%clk 0:00:21.8]} 32... Rc8 {[%clk 0:00:19.6]} 33.
Qxc8+ {[%clk 0:00:23.2]} 33... Qxc8 {[%clk 0:00:20]} 34. Rxc8 {[%clk 0:00:25.1]}
34... Kxc8 {[%clk 0:00:21.9]} 35. Re8+ {[%clk 0:00:26.4]} 35... Kd7 {[%clk
0:00:20.7]} 36. Rh8 {[%clk 0:00:28.3]} 36... Bd3 {[%clk 0:00:20.9]} 37. Rg8
{[%clk 0:00:28.7]} 37... g6 {[%clk 0:00:16.5]} 38. Rg7+ {[%clk 0:00:29.5]} 38...
Ke6 {[%clk 0:00:18.2]} 39. Rxh7 {[%clk 0:00:31.1]} 39... Nc3 {[%clk 0:00:18.4]}
40. Ra7 {[%clk 0:00:31.6]} 40... a4 {[%clk 0:00:18.6]} 41. f3 {[%clk 0:00:31.8]}
41... Bb5 {[%clk 0:00:16.7]} 42. a3 {[%clk 0:00:32.5]} 42... Kd5 {[%clk
0:00:13.4]} 43. Kf2 {[%clk 0:00:33.1]} 43... Kc4 {[%clk 0:00:13.4]} 44. h4
{[%clk 0:00:30.5]} 44... Kb3 {[%clk 0:00:13.9]} 45. g4 {[%clk 0:00:31.9]} 45...
Bc4 {[%clk 0:00:14.4]} 46. h5 {[%clk 0:00:32.2]} 46... gxh5 {[%clk 0:00:16.1]}
47. gxh5 {[%clk 0:00:33.6]} 47... Bd3 {[%clk 0:00:17.7]} 48. h6 {[%clk
0:00:34.6]} 48... Nd1+ {[%clk 0:00:18.5]} 49. Kg3 {[%clk 0:00:34.1]} 49... Ne3
{[%clk 0:00:19.1]} 50. Kf4 {[%clk 0:00:33.9]} 50... Nd5+ {[%clk 0:00:19.1]} 51.
Ke5 {[%clk 0:00:35]} 51... Ne3 {[%clk 0:00:15]} 52. h7 {[%clk 0:00:34.4]} 52...
Nc4+ {[%clk 0:00:16.3]} 53. Kf6 {[%clk 0:00:34.4]} 53... Bxh7 {[%clk 0:00:15.4]}
54. Rb7+ {[%clk 0:00:34.5]} 1-0

[Event "*** Titled Tuesday 3|2 Blitz"]
[Site "Chess.com"]
[Date "2015.12.01"]
[Round "8"]
[White "ntmh281"]
[Black "Penguininja"]
[Result "1-0"]
[WhiteElo "2160"]
[BlackElo "2160"]
[TimeControl "180+2"]
[EndTime "18:44:25 PST"]
[Termination "ntmh281 won by resignation"]

1. d4 {[%clk 0:02:57.8]} 1... d5 {[%clk 0:03:00.8]} 2. Nf3 {[%clk 0:02:58.9]}
2... Nf6 {[%clk 0:03:01.6]} 3. g3 {[%clk 0:02:58.9]} 3... Bf5 {[%clk 0:03:02]}
4. Bg2 {[%clk 0:02:59.8]} 4... h6 {[%clk 0:03:01.7]} 5. O-O {[%clk 0:02:59.8]}
5... c6 {[%clk 0:03:02.8]} 6. Nbd2 {[%clk 0:02:58.1]} 6... e6 {[%clk 0:03:03.8]}
7. c4 {[%clk 0:02:58.9]} 7... Be7 {[%clk 0:03:04.6]} 8. b3 {[%clk 0:02:59.7]}
8... O-O {[%clk 0:03:05.7]} 9. Bb2 {[%clk 0:03:00.7]} 9... a5 {[%clk 0:03:06.2]}
10. a3 {[%clk 0:03:00.6]} 10... Nbd7 {[%clk 0:03:01.8]} 11. Ne5 {[%clk
0:03:00.9]} 11... Bd6 {[%clk 0:02:58.2]} 12. Re1 {[%clk 0:02:59.2]} 12... Qc7
{[%clk 0:02:45.5]} 13. Nxd7 {[%clk 0:02:41.5]} 13... Qxd7 {[%clk 0:02:47.4]} 14.
f3 {[%clk 0:02:38.6]} 14... Bh7 {[%clk 0:02:46.3]} 15. e4 {[%clk 0:02:39]} 15...
Ne8 {[%clk 0:02:34.2]} 16. e5 {[%clk 0:02:33.3]} 16... Bc7 {[%clk 0:02:31.4]}
17. f4 {[%clk 0:02:31]} 17... Bb6 {[%clk 0:02:29.9]} 18. cxd5 {[%clk 0:02:30.3]}
18... cxd5 {[%clk 0:02:29.3]} 19. b4 {[%clk 0:02:25.2]} 19... Nc7 {[%clk
0:02:27.5]} 20. Nb3 {[%clk 0:02:25.3]} 20... axb4 {[%clk 0:02:22]} 21. axb4
{[%clk 0:02:26]} 21... Nb5 {[%clk 0:02:19.9]} 22. Nc5 {[%clk 0:02:26.1]} 22...
Bxc5 {[%clk 0:02:13.6]} 23. bxc5 {[%clk 0:02:26.3]} 23... Qc6 {[%clk 0:02:06.8]}
24. Qb3 {[%clk 0:02:25.3]} 24... Nc7 {[%clk 0:01:52.7]} 25. Bf1 {[%clk
0:02:20.9]} 25... Be4 {[%clk 0:01:42.8]} 26. Bc3 {[%clk 0:02:21.1]} 26... Rfb8
{[%clk 0:01:21.6]} 27. Ba5 {[%clk 0:02:18]} 27... Na6 {[%clk 0:01:02.5]} 28. Bb5
{[%clk 0:02:12.6]} 28... Qc8 {[%clk 0:01:04.1]} 29. Ra2 {[%clk 0:02:06.8]} 29...
Nxc5 {[%clk 0:00:54.3]} 30. dxc5 {[%clk 0:02:03.6]} 30... Qxc5+ {[%clk
0:00:56.2]} 31. Re3 {[%clk 0:02:03.9]} 31... Qc1+ {[%clk 0:00:25.6]} 32. Bf1
{[%clk 0:01:59.2]} 32... b6 {[%clk 0:00:22]} 33. Bd2 {[%clk 0:01:54.5]} 33...
Qc5 {[%clk 0:00:17.6]} 34. Bb4 {[%clk 0:01:50.8]} 34... Qc1 {[%clk 0:00:14]} 35.
Re1 {[%clk 0:01:48.2]} 35... Qc6 {[%clk 0:00:11.4]} 36. Bd6 {[%clk 0:01:42.6]}
36... Rc8 {[%clk 0:00:07.1]} 37. Rb2 {[%clk 0:01:38.7]} 37... Ra4 {[%clk
0:00:04.9]} 38. Qxb6 {[%clk 0:01:37.2]} 38... Qc3 {[%clk 0:00:06.5]} 39. Qb5
{[%clk 0:01:32.2]} 39... Raa8 {[%clk 0:00:05.7]} 40. Ree2 {[%clk 0:01:20]} 40...
Qd4+ {[%clk 0:00:05.8]} 41. Rf2 {[%clk 0:01:19]} 41... Ra1 {[%clk 0:00:06.6]}
42. Qb4 {[%clk 0:01:10.4]} 42... Qe3 {[%clk 0:00:04.2]} 43. Qd2 {[%clk
0:01:09.6]} 43... Qa7 {[%clk 0:00:04.7]} 44. Ra2 {[%clk 0:00:59.4]} 44... Rxa2
{[%clk 0:00:03.8]} 45. Qxa2 {[%clk 0:01:00.1]} 45... Qb6 {[%clk 0:00:05.4]} 46.
Qa6 {[%clk 0:00:56.6]} 46... Qd8 {[%clk 0:00:03.6]} 47. Rb2 {[%clk 0:00:52.9]}
47... Kh7 {[%clk 0:00:03.6]} 48. Kf2 {[%clk 0:00:49.1]} 48... Qd7 {[%clk
0:00:03.5]} 49. Bd3 {[%clk 0:00:45.8]} 49... Bg6 {[%clk 0:00:03.8]} 50. Bxg6+
{[%clk 0:00:43.3]} 50... fxg6 {[%clk 0:00:05.7]} 51. Rb7 {[%clk 0:00:42.1]}
51... Qc6 {[%clk 0:00:06.8]} 52. Qxc6 {[%clk 0:00:42.4]} 52... Rxc6 {[%clk
0:00:07.4]} 53. Bf8 {[%clk 0:00:42.2]} 53... h5 {[%clk 0:00:07]} 54. Rxg7+
{[%clk 0:00:41.2]} 1-0